bitfinex-derivatives/quotes_ETHF0:USTF0_20251012
["timestamp","ask_amount","ask_price","bid_price","bid_amount"]
[1760287433619,2.7039,4084.0,4083.1,0.00263515]
[1760287433820,0.00300838,4084.1,4083.8,3.2078]
[1760287434019,5.725874,4084.0,4083.1,0.00263515]
[1760287434228,5.725874,4084.0,4082.6,3.2078]
[1760287434426,5.9117,4083.9,4082.3,0.24449957]
[1760287434732,3.2078,4083.4,4082.2,3.2078]
[1760287435025,5.93156836,4083.8,4081.2,0.24502297]
[1760287435026,2.7039,4082.7,4081.7,3.2078]
[1760287435223,2.7039,4082.7,4081.7,0.00205471]
[1760287435418,11.01311,4083.6,4081.2,0.24502297]
[1760287435419,5.9117,4082.4,4081.2,0.24502297]
[1760287435627,0.44073,4081.6,4081.2,0.24502297]
[1760287435817,2.7039,4081.3,4079.8,3.2078]
[1760287436017,2.7039,4081.3,4079.4,0.44096]
[1760287436218,6.35247,4081.3,4079.0,2.97791]
[1760287436530,2.7039,4080.8,4079.6,0.24449957]
[1760287436729,2.7056788,4080.8,4079.6,0.24449957]
[1760287436919,2.7056788,4080.8,4079.5,3.2078]
[1760287436920,2.7039,4080.6,4079.5,3.2078]
[1760287437120,2.7039,4080.6,4079.0,0.00242364]
[1760287437121,3.2078,4080.0,4079.0,0.00242364]
[1760287437321,3.2078,4079.3,4079.0,0.00242364]
[1760287437722,0.44106,4078.6,4077.3,3.2078]
[1760287437933,2.7039,4078.7,4077.3,3.2078]
[1760287438233,2.7039,4078.4,4077.3,3.2078]
[1760287438424,2.7039,4078.2,4077.3,3.2078]
[1760287438621,5.79982088,4078.3,4078.1,3.2078]
[1760287438831,5.79982088,4078.7,4077.4,2.5369]
[1760287438832,2.7039,4079.2,4078.2,3.45229957]
[1760287439021,2.7039,4079.2,4078.2,3.2078]
[1760287439221,2.7039,4078.5,4077.4,3.2078]
[1760287439424,6.26653286,4079.1,4078.1,3.2078]
[1760287439629,5.74522176,4078.4,4077.9,0.24449957]
[1760287439831,5.74522176,4078.5,4078.0,3.2078]
[1760287440127,5.74522176,4078.5,4077.4,2.5369]
[1760287440128,5.79726158,4079.1,4078.3,3.64889]
[1760287440429,13.4948,4079.3,4079.0,2.5369]
[1760287440635,3.2078,4080.4,4079.2,5.98919957]
[1760287440825,3.2078,4080.9,4080.0,3.64871]
[1760287441026,10.288,4081.5,4078.9,19.14441235]
[1760287441027,10.288,4081.5,4080.7,5.98919957]
[1760287441330,3.2078,4083.1,4081.9,2.5369]
[1760287441627,5.75338691,4082.4,4082.2,3.2078]
[1760287441833,2.7039,4082.3,4082.1,3.2078]
[1760287442026,3.2078,4083.1,4082.1,3.2078]
[1760287442222,3.2078,4083.1,4081.8,2.5369]
[1760287442223,5.70827808,4082.2,4081.8,2.5369]
[1760287442423,3.2078,4084.1,4083.0,3.33248]
[1760287442727,2.7039,4084.8,4083.4,3.64833]
[1760287442728,2.67311399,4084.0,4083.4,3.64833]
[1760287442937,2.67311399,4084.0,4083.4,3.2078]
[1760287443238,3.0053,4086.9,4084.8,2.8919]
[1760287443442,3.2078,4086.8,4085.3,3.2078]
[1760287443729,3.2078,4086.8,4084.8,0.00237725]
[1760287443730,2.71216985,4086.5,4084.8,0.00237725]
[1760287443938,0.44036,4085.1,4084.8,0.00237725]
[1760287444123,11.00534,4086.5,4084.8,0.00237725]
[1760287444124,5.9052888,4086.4,4085.2,1.2073]
[1760287444324,3.0053,4088.9,4086.3,3.2078]
[1760287444536,3.0053,4090.2,4088.8,3.2078]
[1760287444825,3.0053,4088.7,4087.3,3.2078]
[1760287445029,3.0053,4088.9,4088.2,3.2078]
[1760287445339,3.0053,4086.7,4084.5,2.3915]
[1760287445542,3.2078,4085.2,4084.5,0.0019218]
[1760287445834,3.20963328,4085.2,4084.6,2.8919]
[1760287446022,3.24994761,4087.0,4084.8,2.3897]
[1760287446225,3.2078,4087.4,4086.2,0.44024]
[1760287446430,1.1174,4087.5,4085.7,3.2078]
[1760287446431,3.1803064,4086.9,4085.7,3.2078]
[1760287446626,5.83782523,4087.3,4086.8,3.2078]
[1760287446827,3.2078,4091.0,4087.9,3.2078]
[1760287447122,2.65751883,4089.9,4087.9,0.00240553]
[1760287447327,2.65751883,4089.9,4089.5,0.43988]
[1760287447524,2.65751883,4089.9,4088.4,8.11874235]
[1760287447525,3.0053,4090.4,4089.7,3.2078]
[1760287447726,3.64749,4091.4,4087.9,0.00240553]
[1760287447727,3.4278,4091.3,4090.3,3.2078]
[1760287447926,3.4278,4091.3,4087.9,0.00240553]
[1760287447927,0.22,4091.3,4090.9,3.2078]
[1760287448135,6.21559631,4091.0,4090.9,0.00221739]
[1760287448344,2.71869994,4091.0,4090.9,0.00221739]
[1760287448636,3.12823383,4091.0,4090.9,0.00221739]
[1760287448934,6.2131,4095.4,4091.8,3.2078]
[1760287449143,3.2078,4093.8,4093.1,3.2078]
[1760287449441,3.2078,4093.8,4090.9,0.00221739]
[1760287449442,3.24020784,4093.4,4092.0,8.11874235]
[1760287449735,3.0053,4093.1,4092.2,3.2078]
[1760287449933,5.31093087,4093.3,4092.8,3.2078]
[1760287450130,0.00252971,4093.3,4092.8,3.64732]
[1760287450332,0.00252971,4093.3,4090.9,0.00221739]
[1760287450333,3.2078,4092.9,4092.0,3.2078]
[1760287450531,0.37794092,4093.2,4092.8,11.32654235]
[1760287450734,0.00252971,4093.3,4092.8,3.2078]
[1760287451032,5.87894292,4093.2,4092.8,3.2078]
[1760287451231,5.38321292,4093.2,4092.8,3.2078]
[1760287451441,0.22,4093.1,4092.8,3.2078]
[1760287451643,0.22,4093.1,4090.9,0.00221739]
[1760287451644,3.0053,4092.7,4092.3,3.2078]
[1760287451935,2.54572099,4092.6,4092.3,3.2078]
[1760287452134,2.02640666,4092.6,4092.3,3.2078]
[1760287452440,0.00252971,4093.3,4092.3,3.2078]
[1760287452441,9.71e-06,4093.3,4093.1,0.43949]
[1760287452740,6.65222,4096.7,4093.8,0.43941]
[1760287453036,6.65222,4096.7,4093.2,8.11874235]
[1760287453037,4.1227,4096.0,4095.4,3.2078]
[1760287453337,3.2078,4097.1,4095.9,3.2078]
[1760287453529,3.64693,4096.5,4095.4,3.2078]
[1760287453743,5.83830317,4095.9,4095.4,3.2078]
[1760287453930,1.1174,4096.0,4095.4,3.2078]
[1760287454126,1.1174,4097.6,4094.0,8.11874235]
[1760287454127,1.1174,4099.2,4097.2,0.43905]
[1760287454334,3.0053,4097.5,4096.6,3.2078]
[1760287454528,3.0053,4097.5,4094.0,10.268]
[1760287454529,2.72791181,4097.2,4097.0,3.2078]
[1760287454733,6.80690035,4097.4,4097.0,3.2078]
[1760287454931,6.80690035,4097.5,4097.0,3.2078]
[1760287455229,5.73321181,4097.3,4097.0,3.21024762]
[1760287455433,2.73099616,4097.5,4097.0,3.21024762]
[1760287455735,3.0053,4097.3,4097.0,3.21024762]
[1760287455931,9.44532788,4097.4,4097.0,3.21024762]
[1760287455932,9.81220035,4097.2,4097.0,3.21024762]
[1760287456127,2.63842753,4097.2,4097.0,3.21024762]
[1760287456433,6.18635332,4097.1,4095.7,3.2078]
[1760287456628,6.18635332,4097.1,4091.1,10.264]
[1760287456629,3.18105332,4097.1,4096.3,3.2078]
[1760287456830,3.18105332,4097.1,4091.1,10.264]
[1760287456831,2.53836221,4097.0,4095.9,3.2078]
[1760287457132,3.2078,4096.0,4094.6,11.32654235]
[1760287457326,6.2131,4095.5,4094.6,8.121769]
[1760287457525,1.1174,4096.0,4094.6,8.121769]
[1760287457526,3.2078,4094.8,4094.6,0.00302665]
[1760287457733,3.56241286,4095.9,4094.6,0.00302665]
[1760287457939,2.61629027,4094.7,4094.6,0.00302665]
[1760287458232,2.61629027,4094.7,4094.4,0.43935]
[1760287458233,3.2078,4094.7,4094.4,0.43935]
[1760287458434,6.89021676,4095.8,4094.4,3.2078]
[1760287458435,3.2078,4095.4,4094.4,3.2078]
[1760287458635,1.1174,4094.4,4092.8,8.11874235]
[1760287458831,0.55711286,4094.3,4093.6,8.11874235]
[1760287459032,0.55711286,4094.5,4093.6,8.11874235]
[1760287459033,0.55711286,4094.5,4094.2,0.43937]
[1760287459232,0.55711286,4094.4,4094.2,0.00261636]
[1760287459533,3.2078,4097.0,4096.9,0.43908]
[1760287459735,1.1174,4097.6,4096.4,8.11874235]
[1760287459941,3.2078,4097.4,4096.4,8.11874235]
[1760287460239,3.0053,4096.6,4094.9,8.11874235]
[1760287460430,3.2078,4095.0,4094.2,0.00261636]
[1760287460637,1.1174,4096.0,4094.2,0.00261636]
[1760287460638,3.2078,4094.3,4094.2,0.00261636]
[1760287460832,6.2131,4094.3,4093.0,8.11874235]
[1760287461034,1.1174,4094.4,4093.8,8.11874235]
[1760287461247,6.2131,4093.9,4093.8,8.11874235]
[1760287461540,3.2078,4093.9,4093.8,8.11874235]
[1760287461730,4.3252,4094.4,4093.8,8.12086611]
[1760287461930,9.34674463,4093.9,4093.8,0.00212376]
[1760287462136,12.04133165,4093.9,4092.2,8.11874235]
[1760287462343,3.2078,4092.5,4091.9,8.11874235]
[1760287462542,5.78520272,4093.8,4092.3,3.2078]
[1760287462733,1.1174,4094.4,4093.1,11.32654235]
[1760287462938,1.1174,4094.4,4093.4,3.2078]
[1760287463135,3.2078,4094.1,4093.8,0.43941]
[1760287463336,3.2078,4094.1,4093.4,0.00246102]
[1760287463641,3.2078,4093.5,4092.1,3.6474]
[1760287463837,3.2078,4092.9,4092.4,0.43957]
[1760287464137,1.1174,4092.8,4092.1,3.2078]
[1760287464343,3.2078,4093.9,4093.2,0.43948]
[1760287464537,3.2078,4093.9,4093.5,0.43945]
[1760287464734,3.2078,4093.9,4093.5,8.11874235]
[1760287464929,3.2078,4093.9,4093.2,0.0016863]
[1760287465133,3.0053,4093.1,4091.7,3.2078]
[1760287465331,3.0053,4091.7,4090.3,3.2078]
[1760287465640,1.1174,4092.0,4084.6,1.58111962]
[1760287465641,1.1174,4092.0,4091.6,3.64745]
[1760287465936,5.98443376,4091.9,4090.2,0.4398]
[1760287466134,6.2131,4091.7,4091.2,8.11874235]
[1760287466335,3.2078,4091.7,4090.2,0.00152178]
[1760287466635,1.1174,4090.5,4088.7,8.11874235]
[1760287466831,3.2078,4091.9,4090.5,1.09944]
[1760287467035,6.2131,4091.9,4091.2,3.2078]
[1760287467234,2.49185746,4091.8,4090.9,3.2078]
[1760287467440,3.2078,4091.4,4090.2,3.2078]
[1760287467639,0.00285068,4091.8,4091.2,3.2078]
[1760287467937,6.2131,4094.1,4093.4,0.43945]
[1760287468138,1.1174,4094.4,4093.9,3.2078]
[1760287468532,1.1174,4094.4,4094.1,0.43938]
[1760287468749,3.2078,4095.7,4093.9,3.2078]
[1760287468939,3.0053,4095.6,4094.7,3.2078]
[1760287469141,6.22113209,4095.6,4095.2,3.2078]
[1760287469346,0.00268897,4095.7,4095.2,3.2078]
[1760287469540,0.00268897,4095.7,4095.0,0.43929]
[1760287469838,0.00268897,4095.7,4095.2,3.2078]
[1760287470147,8.97e-06,4095.7,4095.6,8.11874235]
[1760287470543,8.97e-06,4095.7,4095.4,0.43925]
[1760287470745,8.97e-06,4095.7,4095.2,3.2078]
[1760287471135,8.97e-06,4095.7,4095.3,0.43926]
[1760287471441,8.97e-06,4095.7,4094.7,3.2078]
[1760287471640,2.77586798,4095.6,4095.2,3.2078]
[1760287471838,2.77586798,4095.6,4093.9,0.00285068]
[1760287471839,3.2078,4095.5,4094.3,3.2078]
[1760287472040,3.2078,4094.8,4094.3,3.2078]
[1760287472241,2.77586798,4095.4,4094.3,3.2078]
[1760287472539,3.0053,4095.6,4094.8,3.2078]
[1760287472740,1.2449,4095.0,4094.3,3.2078]
[1760287473049,3.2879,4094.4,4094.3,3.2078]
[1760287473242,3.2078,4094.4,4093.9,0.00285068]
[1760287473435,3.2879,4094.1,4093.9,0.00285068]
[1760287473837,9.17690423,4094.0,4092.4,3.2078]
[1760287474043,3.2078,4093.3,4092.4,3.2078]
[1760287474550,3.2078,4093.1,4092.4,3.2078]
[1760287474849,0.43951,4093.0,4092.4,3.2078]
[1760287475147,3.2078,4093.1,4092.4,3.21022294]
[1760287475341,1.2449,4093.6,4092.4,3.21022294]
[1760287475342,3.72746,4092.5,4092.4,0.00242294]
[1760287475542,3.72921065,4092.5,4092.4,0.00242294]
[1760287475745,6.37653915,4092.5,4092.4,0.00242294]
[1760287475937,6.37654915,4092.5,4091.7,3.2078]
[1760287476146,5.93697915,4092.5,4091.7,3.2078]
[1760287476651,1.2449,4092.4,4091.7,3.2078]
[1760287476852,3.2879,4092.0,4091.7,3.2078]
[1760287477054,6.4957,4091.8,4090.8,3.2078]
[1760287477448,2.60514998,4091.7,4090.8,3.2078]
[1760287477640,1.68448,4092.4,4090.9,3.2078]
[1760287477950,0.00175065,4092.5,4092.3,0.43957]
[1760287478144,2.61924834,4092.3,4090.7,2.8699]
[1760287478344,2.61924834,4092.3,4091.7,3.2078]
[1760287478345,5.76198874,4092.3,4091.7,3.2078]
[1760287478544,3.2078,4092.9,4091.2,2.8699]
[1760287478545,0.43952,4092.9,4092.2,0.43958]
[1760287478745,4.30647,4093.4,4092.0,3.2078]
[1760287478946,3.64734,4092.7,4091.8,2.8699]
[1760287479154,0.43961,4092.1,4091.8,2.8719077]
[1760287479450,6.4957,4094.4,4092.6,2.8699]
[1760287479647,3.2078,4094.4,4093.3,3.2078]
[1760287479844,1.09796,4096.1,4094.3,0.43937]
[1760287479845,2.66726985,4094.9,4094.3,0.43937]
[1760287480145,3.2078,4095.1,4094.1,3.2078]
[1760287480349,3.2078,4095.1,4093.8,3.2078]
[1760287480350,2.66726985,4095.0,4093.8,3.2078]
[1760287480542,0.00307872,4095.0,4094.9,6.0747]
[1760287480746,0.00307872,4095.0,4094.9,0.00214356]
[1760287481045,3.2879,4094.6,4093.1,2.8669]
[1760287481349,0.43934,4094.6,4094.1,3.2078]
[1760287481545,0.83127009,4097.5,4094.9,3.2078]
[1760287481745,0.83127009,4097.5,4091.9,2.11980123]
[1760287481746,3.2879,4098.7,4097.7,0.439]
[1760287481951,4.64e-06,4097.8,4097.7,0.439]
[1760287482156,3.2078,4100.3,4097.4,8.01247158]
[1760287482358,3.2078,4101.0,4100.2,3.2078]
[1760287482551,3.2078,4100.4,4100.2,0.00180001]
[1760287482751,3.2879,4100.3,4100.2,0.00180001]
[1760287482948,9.30819267,4100.3,4099.2,3.2078]
[1760287483251,3.2078,4100.4,4099.6,0.4388]
[1760287483556,3.2879,4101.1,4100.0,3.2078]
[1760287483850,0.022,4102.8,4102.7,0.43847]
[1760287484054,1.2092496,4105.9,4102.7,0.43847]
[1760287484055,3.2078,4107.2,4103.3,3.2078]
[1760287484252,0.83127009,4113.4,4108.8,0.43781]
[1760287484454,0.00736761,4113.6,4105.4,1.58111962]
[1760287484455,0.00736761,4113.6,4111.5,8.01247158]
[1760287484657,3.2078,4115.2,4113.2,0.43734]
[1760287484850,3.17385214,4116.8,4115.1,8.01247158]
[1760287485051,3.17385214,4116.8,4113.2,0.00143065]
[1760287485052,3.2078,4120.5,4116.5,3.2078]
[1760287485250,3.2078,4122.6,4120.4,8.01247158]
[1760287485451,3.22980464,4121.6,4117.0,1.20930771]
[1760287485654,3.22980464,4121.6,4115.2,12.80230781]
[1760287485655,2.54539616,4121.6,4116.8,1.20930771]
[1760287485856,4.70515173,4121.5,4114.7,0.9867]
[1760287486154,10.91393,4120.7,4114.7,0.9867]
[1760287486355,3.2078,4115.8,4114.8,3.2078]
[1760287486547,3.21019639,4115.8,4114.7,1.2946]
[1760287486748,3.19407808,4115.7,4114.4,3.2078]
[1760287486949,3.2078,4114.7,4112.5,3.2078]
[1760287487144,3.22980464,4115.6,4111.5,3.2078]
[1760287487145,3.2078,4112.6,4111.5,3.2078]
[1760287487361,2.53096785,4114.6,4112.2,3.2078]
[1760287487653,0.00187834,4114.6,4114.3,3.2078]
[1760287487856,3.2078,4114.0,4110.9,3.2078]
[1760287488051,3.2078,4114.0,4105.3,2.11980123]
[1760287488052,3.2078,4113.3,4110.7,0.9002]
[1760287488250,0.0423028,4115.3,4112.6,3.2078]
[1760287488446,3.2078,4113.5,4111.2,0.24323503]
[1760287488651,3.2078,4113.6,4111.5,3.2078]
[1760287488847,0.00279402,4113.6,4112.5,3.2078]
[1760287489046,0.00279402,4113.6,4113.5,3.2078]
[1760287489247,10.229,4117.9,4113.5,3.2078]
[1760287489248,3.2078,4116.9,4113.5,8.01247158]
[1760287489453,3.2078,4115.7,4113.6,3.2078]
[1760287489654,3.2078,4113.7,4111.5,0.00155196]
[1760287489849,3.2078,4113.7,4104.3,3.02164157]
[1760287489850,3.0715,4111.8,4109.3,3.2078]
[1760287490058,3.0715,4111.8,4106.2,1.58111962]
[1760287490059,3.2078,4112.4,4111.5,11.22027158]
[1760287490363,3.2078,4111.9,4111.0,3.2078]
[1760287490656,21.59135,4115.7,4108.0,10.227]
[1760287490657,3.2078,4113.0,4111.8,8.01247158]
[1760287490847,0.00308921,4113.0,4111.8,0.00224473]
[1760287491053,3.2078,4113.7,4112.8,3.2078]
[1760287491265,3.2078,4117.7,4114.4,3.2078]
[1760287491456,3.2078,4115.7,4114.6,3.2078]
[1760287491658,5.87544717,4115.6,4113.5,8.01247158]
[1760287491852,3.2078,4114.9,4113.8,3.2078]
[1760287492056,0.00305716,4114.9,4113.8,3.2078]
[1760287492358,2.75947758,4116.6,4114.5,3.2078]
[1760287492658,3.2078,4116.3,4113.9,3.2078]
[1760287492860,3.2078,4115.0,4113.1,3.2078]
[1760287493053,3.2078,4116.8,4114.9,3.2078]
[1760287493249,0.0019646,4116.8,4115.6,3.2078]
[1760287493453,0.0019646,4116.8,4114.9,0.00287528]
[1760287493454,3.2078,4115.9,4114.9,0.00287528]
[1760287493659,6.2793,4115.1,4113.2,3.2078]
[1760287493848,3.2078,4114.5,4113.4,3.2078]
[1760287494050,3.2078,4114.5,4105.4,1.20930771]
[1760287494051,5.80151409,4115.8,4114.4,3.2078]
[1760287494255,3.2078,4118.8,4115.7,11.22027158]
[1760287494455,3.2078,4120.7,4118.7,3.2078]
[1760287494758,3.2078,4120.7,4113.5,3.10638318]
[1760287494759,0.32284126,4118.7,4116.3,3.2078]
[1760287494960,10.91667,4119.7,4114.4,3.2078]
[1760287494961,3.2078,4116.4,4114.4,3.2078]
[1760287495159,3.2078,4115.5,4114.2,3.2078]
[1760287495360,0.00221885,4115.5,4115.0,3.2078]
[1760287495557,3.2078,4118.2,4115.0,3.2078]
[1760287495763,5.37920696,4121.2,4117.9,8.01247158]
[1760287495955,5.37920696,4121.2,4115.1,10.214]
[1760287495956,2.17140696,4121.2,4119.4,3.2078]
[1760287496159,3.2078,4120.9,4119.0,3.2078]
[1760287496460,0.22,4121.3,4117.1,3.2078]
[1760287496461,3.0715,4119.1,4117.1,3.2078]
[1760287496665,3.2078,4119.2,4118.0,3.2078]
[1760287496860,0.22,4121.3,4119.1,3.2078]
[1760287497157,0.22,4121.3,4118.0,8.01247158]
[1760287497158,3.2078,4120.9,4120.0,3.2078]
[1760287497361,3.2078,4120.9,4110.7,0.58571423]
[1760287497362,3.2078,4120.1,4117.4,3.2078]
[1760287497558,2.69976125,4120.8,4118.5,8.01247158]
[1760287497860,2.69976125,4120.8,4113.0,10.21]
[1760287497861,3.2078,4119.4,4117.9,3.2078]
[1760287498061,0.022,4122.8,4120.9,3.2078]
[1760287498260,3.0715,4126.3,4117.2,43.751]
[1760287498261,3.2078,4124.4,4122.7,3.2078]
[1760287498457,2.17140696,4122.8,4120.4,3.2078]
[1760287498667,10.90664,4123.5,4119.4,10.208]
[1760287498668,3.2078,4123.2,4121.5,8.01247158]
[1760287498870,4.8954102,4124.3,4119.4,10.208]
[1760287498871,2.17140696,4124.3,4123.1,3.2078]
[1760287499054,2.17140696,4124.2,4123.1,0.00250925]
[1760287499360,5.92556029,4124.1,4122.6,3.2078]
[1760287499565,5.92556029,4124.1,4117.1,10.206]
[1760287499566,3.2078,4122.7,4119.8,3.2078]
[1760287499860,3.2078,4119.9,4118.0,8.01247158]
[1760287500161,3.0715,4122.4,4119.6,3.2078]
[1760287500357,3.2078,4122.3,4120.7,11.22027158]
[1760287500668,3.2078,4121.1,4118.0,0.00228176]
[1760287500868,3.2078,4121.0,4119.8,8.01247158]
[1760287501058,10.90111,4125.6,4118.0,0.00228176]
[1760287501059,3.2078,4123.2,4121.0,8.01247158]
[1760287501256,3.2078,4121.4,4121.0,0.00183894]
[1760287501456,3.16007386,4122.4,4121.3,3.2078]
[1760287501660,3.2078,4122.2,4121.0,0.00183894]
[1760287501861,0.00261468,4123.2,4117.7,3.2078]
[1760287501862,10.91211,4121.4,4117.7,3.2078]
[1760287502159,3.2078,4119.8,4119.0,8.01247158]
[1760287502455,3.2078,4121.4,4119.4,0.0042]
[1760287502655,3.2078,4121.4,4113.3,0.79764771]
[1760287502656,3.2078,4119.6,4118.3,0.0042]
[1760287502856,3.2078,4119.1,4118.3,0.00717425]
[1760287503068,0.00177826,4119.6,4114.6,10.199]
[1760287503069,3.2078,4118.4,4116.2,0.0042]
[1760287503271,3.2078,4117.4,4116.2,0.0042]
[1760287503467,2.66765378,4119.0,4117.7,3.2078]
[1760287503773,0.00177826,4119.6,4118.3,3.2078]
[1760287503774,3.2078,4119.4,4118.3,3.2078]
[1760287504063,2.81486249,4119.4,4117.3,3.2078]
[1760287504262,2.81486249,4119.4,4115.1,10.197]
[1760287504263,3.13278048,4119.3,4118.7,3.2078]
[1760287504466,2.64824827,4119.3,4119.2,3.2078]
[1760287504665,3.69525,4118.0,4115.8,3.2078]
[1760287504963,3.2078,4117.8,4116.7,3.2078]
[1760287505154,0.00313219,4118.0,4115.8,0.00264889]
[1760287505359,3.2078,4117.1,4116.1,3.2078]
[1760287505561,5.84069732,4117.9,4116.4,3.2078]
[1760287505767,0.00313219,4118.0,4116.4,3.2078]
[1760287505768,3.2078,4117.4,4116.4,3.2078]
[1760287505962,2.57961372,4117.5,4117.2,3.2078]
[1760287506259,3.2078,4120.4,4117.7,0.62818628]
[1760287506565,3.2078,4120.4,4115.8,0.00264889]
[1760287506566,1.3797,4120.6,4119.5,3.2078]
[1760287506766,2.58640181,4120.3,4120.2,3.2078]
[1760287507061,0.00274882,4120.3,4120.2,3.20973209]
[1760287507270,1.3797,4120.2,4117.9,3.2078]
[1760287507569,10.194,4121.5,4115.6,10.195]
[1760287507570,3.2078,4123.8,4120.1,3.2078]
[1760287507772,3.2078,4126.3,4123.7,11.22027158]
[1760287508063,10.88993,4129.8,4122.2,8.01247158]
[1760287508064,3.2078,4130.1,4127.2,3.2078]
[1760287508264,0.022,4132.8,4123.8,10.194]
[1760287508265,0.022,4132.8,4130.7,3.2078]
[1760287508468,0.022,4132.8,4127.3,10.194]
[1760287508469,3.2078,4136.8,4133.1,3.2078]
[1760287508668,3.2078,4136.8,4127.6,0.79764771]
[1760287508669,3.2584,4133.3,4132.0,3.2078]
[1760287508963,3.2584,4129.0,4126.4,3.352]
[1760287509165,2.4011,4127.5,4126.4,3.11]
[1760287509366,2.4011,4127.5,4122.5,1.058]
[1760287509367,0.43575,4128.4,4124.8,3.2078]
[1760287509662,0.43575,4128.4,4122.5,1.058]
[1760287509663,3.17877528,4129.3,4126.6,3.2078]
[1760287509856,3.2078,4126.7,4124.4,3.2078]
[1760287510055,0.43592,4126.8,4124.6,3.2078]
[1760287510056,3.2078,4126.8,4124.6,3.2078]
[1760287510258,3.2078,4125.5,4123.2,0.24252713]
[1760287510564,3.2078,4123.5,4121.1,3.2078]
[1760287510861,3.2078,4122.3,4121.2,3.2078]
[1760287511059,0.00197398,4123.5,4122.2,11.22027158]
[1760287511256,10.91153,4121.6,4121.1,0.00179094]
[1760287511457,3.2078,4122.3,4121.1,0.00179094]
[1760287511659,10.9139,4120.8,4118.7,3.2078]
[1760287511971,3.2078,4122.0,4120.7,3.2078]
[1760287512162,3.2078,4123.2,4121.9,3.2078]
[1760287512365,3.2078,4123.9,4122.9,3.2078]
[1760287512564,3.2078,4123.9,4120.3,0.79764771]
[1760287512565,0.43592,4126.8,4123.6,3.2078]
[1760287512766,10.89385,4128.3,4123.3,8.01247158]
[1760287512767,2.96154984,4126.5,4125.6,3.2078]
[1760287512967,10.186,4130.8,4125.1,8.01247158]
[1760287512968,3.2078,4127.5,4125.1,8.01247158]
[1760287513165,3.2078,4127.5,4124.9,0.79764771]
[1760287513166,3.2078,4129.1,4127.4,3.2078]
[1760287513368,3.21024558,4129.1,4127.4,0.0021194]
[1760287513567,0.00244558,4129.1,4127.8,3.2078]
[1760287513766,10.89281,4128.7,4127.4,0.0021194]
[1760287514066,10.89281,4128.7,4125.0,2.11980123]
[1760287514067,1.81568,4126.2,4125.4,3.2078]
[1760287514265,1.3797,4126.2,4125.7,3.2078]
[1760287514470,5.85226133,4126.1,4124.6,3.2078]
[1760287514777,3.2078,4128.7,4125.9,3.2078]
[1760287514973,10.8882,4130.5,4125.9,3.2078]
[1760287514974,3.2078,4130.4,4128.4,3.2078]
[1760287515177,3.2078,4130.4,4126.0,1.20930771]
[1760287515178,10.89417,4128.2,4126.0,1.20930771]
[1760287515367,3.2584,4127.8,4125.9,0.00202437]
[1760287515567,0.01,4126.1,4125.9,0.00202437]
[1760287515878,3.2078,4132.0,4127.3,3.2078]
[1760287516077,3.2078,4133.6,4131.9,3.2078]
[1760287516373,3.2078,4132.0,4130.4,3.2078]
[1760287516575,6.02300746,4133.2,4130.3,3.2078]
[1760287516576,3.2078,4131.1,4130.3,3.2078]
[1760287516783,3.2298,4137.8,4132.1,3.2078]
[1760287517074,3.2298,4137.8,4136.1,0.16506989]
[1760287517075,1.3797,4136.6,4136.1,0.16506989]
[1760287517279,0.06,4138.2,4136.8,2.71259033]
[1760287517472,10.179,4142.3,4138.1,3.2078]
[1760287517473,3.2078,4140.5,4138.1,3.2078]
[1760287517773,0.00296348,4140.5,4139.4,3.2078]
[1760287517974,3.2078,4142.4,4140.1,3.2078]
[1760287518173,3.2078,4141.2,4139.4,3.2078]
[1760287518369,0.22,4141.7,4140.2,3.2078]
[1760287518572,3.2584,4140.0,4136.1,3.2078]
[1760287518771,1.3797,4139.2,4138.1,3.2078]
[1760287518970,0.01,4140.5,4138.9,3.2078]
[1760287519171,0.22,4141.7,4139.1,3.2078]
[1760287519381,0.40201208,4142.5,4141.6,3.2078]
[1760287519680,12.40270403,4144.0,4142.4,11.22027158]
[1760287519875,12.40270403,4144.0,4141.6,0.00308114]
[1760287519876,3.2078,4148.1,4144.3,3.2078]
[1760287520066,3.2078,4145.6,4142.5,3.2078]
[1760287520271,3.20319985,4147.7,4145.5,3.2078]
[1760287520472,9.17330403,4147.6,4144.9,3.2078]
[1760287520673,0.00263195,4147.6,4146.6,3.2078]
[1760287520880,9.17330403,4147.5,4146.0,3.2078]
[1760287521178,3.2584,4145.2,4137.9,10.168]
[1760287521374,3.2078,4145.9,4143.1,3.2078]
[1760287521578,3.2078,4144.8,4141.6,8.01247158]
[1760287521775,3.2078,4144.8,4141.2,3.2078]
[1760287521776,3.2078,4146.5,4141.7,10.165]
[1760287521976,3.2078,4144.2,4141.7,0.00201013]
[1760287522174,3.2078,4143.7,4141.7,0.00201013]
[1760287522371,3.2078,4143.7,4135.7,3.1047767]
[1760287522372,0.01281177,4142.7,4139.2,3.2078]
[1760287522572,3.2078,4147.1,4142.6,8.01247158]
[1760287522781,3.2078,4147.1,4131.2,2.11980123]
[1760287522782,3.2078,4148.2,4145.4,8.01247158]
[1760287522990,0.22,4151.3,4145.8,3.2078]
[1760287523278,0.22,4151.3,4137.7,2.11980123]
[1760287523279,3.2078,4155.6,4151.2,11.22027158]
[1760287523479,10.80995,4160.4,4145.9,53.699]
[1760287523480,3.2078,4159.0,4155.5,8.01247158]
[1760287523682,0.12061483,4159.0,4158.6,8.01247158]
[1760287523871,3.2078,4160.4,4158.9,3.2078]
[1760287524072,3.2078,4161.1,4159.1,3.2078]
[1760287524280,3.2078,4161.9,4160.2,3.2078]
[1760287524479,3.2078,4159.6,4155.7,3.2078]
[1760287524685,3.2078,4159.4,4157.0,3.2078]
[1760287524976,0.00259144,4159.4,4157.0,3.21064456]
[1760287525179,6.22637537,4159.3,4157.0,0.00284456]
[1760287525381,3.2078,4163.7,4158.8,3.2078]
[1760287525570,10.78174,4171.3,4157.0,0.00284456]
[1760287525571,10.147,4164.8,4161.8,3.2078]
[1760287525772,10.79121,4167.6,4147.2,0.24112364]